bitfinex-derivatives/quotes_SOLF0:USTF0_20260314
["timestamp","ask_amount","ask_price","bid_price","bid_amount"]
[1773449793343,10.231,87.953,87.918,23.23755221]
[1773449794441,10.231,87.953,87.927,0.07625996]
[1773449801539,10.232,87.945,87.927,0.07625996]
[1773449803545,10.231,87.953,87.927,23.40397176]
[1773449805854,10.231,87.953,87.927,0.07625996]
[1773449808854,3.05710634,87.96,87.927,0.07625996]
[1773449809956,10.232,87.941,87.916,23.32918191]
[1773449813759,0.07391147,87.952,87.921,23.32265891]
[1773449814353,44.0,87.969,87.921,23.32265891]
[1773449814554,10.23,87.963,87.921,23.32265891]
[1773449815164,0.07350738,87.951,87.921,23.32265891]
[1773449821866,10.231,87.95,87.91,23.31923093]
[1773449825064,10.232,87.943,87.91,23.31923093]
[1773449825266,0.07350738,87.951,87.91,23.31923093]
[1773449826570,10.233,87.936,87.91,23.31923093]
[1773449827568,0.07865703,87.932,87.91,23.31923093]
[1773449840177,0.07865703,87.932,87.884,35.8]
[1773449841783,10.234,87.923,87.884,35.8]
[1773449842184,10.234,87.923,87.885,14.67670473]
[1773449842878,0.07965887,87.913,87.885,14.67670473]
[1773449844881,10.233,87.931,87.891,14.60551414]
[1773449866698,4.54479273,87.919,87.89,0.00044599]
[1773449867199,4.54479273,87.919,87.86,3.05502344]
[1773449868497,0.07889411,87.898,87.86,3.05502344]
[1773449868796,0.07889411,87.898,87.861,9.3285466]
[1773449872608,0.07889411,87.898,87.862,10.241]
[1773449873109,0.07889411,87.898,87.863,9.38888569]
[1773449873712,4.88390248,87.927,87.881,9.38888569]
[1773449874311,10.234,87.926,87.881,9.38888569]
[1773449875111,10.234,87.926,87.895,0.07886477]
[1773449877514,10.234,87.926,87.895,9.46775046]
[1773449877814,10.233,87.935,87.895,9.46775046]
[1773449878209,15.64539538,87.935,87.895,9.46775046]
[1773449878412,5.41239538,87.934,87.895,9.46775046]
[1773449879719,5.43157338,87.932,87.895,9.46775046]
[1773449880218,5.43157338,87.932,87.895,9.38888569]
[1773449880618,5.43157338,87.932,87.905,0.07703227]
[1773449881111,5.43828817,87.928,87.905,0.07703227]
[1773449889525,10.234,87.927,87.905,0.07703227]
[1773449890019,5.55771239,87.926,87.905,0.07703227]
[1773449891624,10.234,87.925,87.905,0.07703227]
[1773449904233,5.7362627,87.937,87.905,9.40295943]
[1773449906541,10.231,87.949,87.905,9.40295943]
[1773449906542,5.71993449,87.948,87.905,9.40295943]
[1773449906737,14.52038557,87.947,87.905,9.40295943]
[1773449906935,8.85886234,87.946,87.905,9.40295943]
[1773449907140,5.66149669,87.947,87.905,9.40295943]
[1773449909944,5.66149669,87.947,87.906,10.236]
[1773449910147,5.66149669,87.947,87.907,9.32592716]
[1773449911740,10.60018494,87.974,87.905,0.07703227]
[1773449911741,5.76603368,87.957,87.91,9.32592716]
[1773449911951,5.76603368,87.957,87.911,9.32592716]
[1773449912355,16.00674613,87.968,87.914,9.32592716]
[1773449912556,14.62728089,87.967,87.926,9.32592716]
[1773449912758,5.77850103,87.965,87.926,9.32592716]
[1773449942586,5.77850103,87.965,87.928,9.61876761]
[1773449942784,6.13156209,87.976,87.928,9.61876761]
[1773449943785,6.13156209,87.976,87.943,0.07572532]
[1773449946985,6.13156209,87.976,87.943,9.69449293]
[1773449948690,6.20049757,87.969,87.943,0.07572532]
[1773449949389,6.20049757,87.969,87.931,9.61876761]
[1773449949683,6.20049757,87.969,87.947,0.07901682]
[1773449953585,6.25842441,87.959,87.9,3.05354244]
[1773449953790,6.27113492,87.949,87.901,9.61876761]
[1773449954689,6.27113492,87.949,87.91,9.61876761]
[1773449954990,0.07530207,87.934,87.91,9.61876761]
[1773449955596,0.07530207,87.934,87.911,10.235]
[1773449955891,0.07530207,87.934,87.912,9.61876761]
[1773449958091,6.45822196,87.934,87.887,9.61876761]
[1773449958491,6.38291989,87.934,87.887,9.61876761]
[1773449958795,6.39005053,87.945,87.895,9.61876761]
[1773449959694,6.39005053,87.945,87.903,9.61876761]
[1773449959888,0.07537631,87.929,87.903,9.61876761]
[1773449960085,6.17776106,87.955,87.91,3.05354244]
[1773449960294,6.18408556,87.966,87.92,3.05354244]
[1773449960489,6.18408556,87.966,87.921,9.61876761]
[1773449961493,6.18408556,87.966,87.935,0.07572484]
[1773449970203,6.20890135,87.963,87.935,0.07572484]
[1773449973203,10.23,87.962,87.935,0.07572484]
[1773449973404,6.23309879,87.961,87.935,0.07572484]
[1773449974302,6.23309879,87.961,87.919,10.12440241]
[1773449975006,6.24383072,87.959,87.919,10.12440241]
[1773449975605,0.07229389,87.948,87.919,10.12440241]
[1773449983403,6.3494431,87.948,87.919,10.12440241]
[1773449983608,6.3494431,87.948,87.909,10.12440241]
[1773449984202,6.27714921,87.948,87.909,10.12440241]
[1773449984611,0.07644131,87.937,87.909,10.12440241]
[1773449985007,6.27714921,87.948,87.909,10.12440241]
[1773449985315,6.29536733,87.959,87.915,10.12440241]
[1773449989115,6.34232527,87.956,87.915,10.12440241]
[1773449990119,6.34232527,87.956,87.927,0.07990651]
[1773449990615,6.34232527,87.956,87.888,35.8]
[1773449990616,10.21444684,87.939,87.861,64.13441938]
[1773449990818,10.21444684,87.939,87.89,3.05354244]
[1773449991115,10.21444684,87.939,87.88,3.05354244]
[1773449991617,9.81240611,87.938,87.885,10.239]
[1773449992013,9.81240611,87.938,87.89,3.05354244]
[1773449992613,0.08206284,87.92,87.891,9.93758574]
[1773449997115,9.81240611,87.917,87.88,9.93758574]
[1773449997320,0.08206284,87.92,87.88,9.93758574]
[1773449997523,0.08206284,87.92,87.881,9.93758574]
[1773449997725,9.81240611,87.927,87.881,9.93758574]
[1773449998226,0.08086601,87.909,87.881,9.93758574]
[1773450002333,9.89327212,87.909,87.871,9.93758574]
[1773450002736,0.08086601,87.909,87.871,9.93758574]
[1773450002919,0.08086601,87.909,87.881,9.93758574]
[1773450003123,9.81240611,87.933,87.89,3.05685886]
[1773450003324,9.81240611,87.933,87.891,9.93758574]
[1773450003525,9.81240611,87.933,87.892,9.93758574]
[1773450004426,9.81240611,87.931,87.892,9.93758574]
[1773450004734,9.81240611,87.931,87.904,0.07535058]
[1773450005041,9.81240611,87.931,87.881,9.93758574]
[1773450005832,9.81240611,87.929,87.882,9.93758574]
[1773450006425,9.81240611,87.929,87.891,9.93758574]
[1773450009732,0.07723555,87.919,87.891,9.93758574]
[1773450022842,0.07723555,87.919,87.894,9.75987971]
[1773450025039,0.07723555,87.919,87.898,9.75987971]
[1773450026643,0.07723555,87.919,87.902,9.75987971]
[1773450031148,0.07723555,87.919,87.894,10.238]
[1773450031645,10.051577,87.926,87.894,10.238]
[1773450031842,10.051577,87.926,87.895,9.75987971]
[1773450032139,0.07729331,87.915,87.895,9.75987971]
[1773450036050,0.07729331,87.915,87.899,9.75987971]
[1773450036350,10.051577,87.961,87.911,9.75987971]
[1773450036540,10.051577,87.959,87.911,9.75987971]
[1773450036744,10.051577,87.959,87.921,9.75987971]
[1773450037651,10.051577,87.959,87.931,0.07824652]
[1773450039548,10.051577,87.973,87.931,9.83812623]
[1773450040146,10.051577,87.973,87.931,9.75987971]
[1773450040644,10.051577,87.973,87.943,0.07555352]
[1773450041942,34.11,87.992,87.96,3.05685886]
[1773450042143,10.051577,87.997,87.96,12.81673857]
[1773450042345,10.051577,87.997,87.961,9.75987971]
[1773450042543,10.051577,88.017,87.971,19.98887971]
[1773450042746,10.051577,88.015,87.971,9.75987971]
[1773450042949,8.83378022,88.014,87.971,9.75987971]
[1773450043145,10.051577,88.012,87.971,9.75987971]
[1773450043545,3.05685886,88.01,87.97,0.07814878]
[1773450043751,10.051577,88.009,87.961,9.75987971]
[1773450044150,10.051577,88.009,87.981,0.07462776]
[1773450047750,10.223,88.018,87.981,0.07462776]
[1773450047956,9.47286557,88.019,87.981,10.52389886]
[1773450049654,9.47286557,88.019,87.982,10.4492711]
[1773450052460,9.47286557,88.019,87.981,10.30162776]
[1773450052461,9.80484577,88.009,87.981,0.07462776]
[1773450052859,9.80484577,88.009,87.933,35.8]
[1773450052860,9.80484577,88.009,87.952,10.02072393]
[1773450053063,9.80484577,87.999,87.952,20.25172393]
[1773450053964,9.80484577,87.999,87.955,10.02072393]
[1773450055266,0.07185015,87.986,87.955,10.02072393]
[1773450055766,0.07185015,87.986,87.959,10.02072393]
[1773450064764,9.80484577,87.985,87.93,3.0510922]
[1773450064969,9.80484577,87.985,87.93,10.02072393]
[1773450065571,9.80484577,87.98,87.932,10.02072393]
[1773450066072,9.80484577,87.964,87.921,10.02072393]
[1773450066663,9.80484577,87.964,87.929,10.02072393]
[1773450067675,9.80484577,87.964,87.933,10.02072393]
[1773450070683,0.07330921,87.965,87.936,20.25372393]
[1773450070867,0.07330921,87.965,87.937,10.02072393]
[1773450072075,0.07330921,87.965,87.941,10.02072393]
[1773450072678,9.80484577,87.989,87.941,10.02072393]
[1773450072875,9.80484577,87.989,87.947,20.25172393]
[1773450073177,9.80484577,87.989,87.948,10.02072393]
[1773450073372,9.80484577,87.989,87.959,0.08490736]
[1773450081495,3.0510922,88.0,87.96,9.67926281]
[1773450081496,9.71120325,88.0,87.96,9.67926281]
[1773450082491,9.71120325,88.0,87.961,10.23]
[1773450082698,9.71120325,88.0,87.962,9.67926281]
[1773450083597,9.71120325,88.0,87.964,10.229]
[1773450083804,9.71120325,88.0,87.964,19.90826281]
[1773450084202,9.71120325,88.0,87.965,9.67926281]
[1773450088908,9.71120325,88.0,87.966,10.229]
[1773450089100,9.71120325,88.0,87.967,9.67926281]
[1773450090511,9.71120325,88.0,87.968,10.229]
[1773450093206,9.71120325,88.0,87.97,10.229]
[1773450093508,9.71120325,88.019,87.97,9.67926281]
[1773450093710,9.71120325,88.009,87.971,10.229]
[1773450093906,9.71120325,88.009,87.972,9.67926281]
[1773450094410,9.71120325,88.009,87.982,0.07487219]
[1773450100213,9.71120325,88.019,87.982,9.754135]
[1773450101611,9.71120325,88.019,87.983,10.227]
[1773450104216,9.71120325,88.019,87.99,10.226]
[1773450105516,9.71120325,88.019,87.99,19.90526281]
[1773450106212,10.37282947,88.029,87.999,10.30055591]
[1773450107320,10.37282947,88.029,88.005,0.07431103]
[1773450109918,10.37282947,88.029,87.978,10.30055591]
[1773450110615,10.37282947,88.029,87.981,10.30055591]
[1773450112521,0.07370723,88.014,87.986,10.227]
[1773450114321,0.07370723,88.014,87.986,20.65276757]
[1773450116213,0.07370723,88.014,87.987,10.42576757]
[1773450118325,44.0,88.033,87.993,10.42576757]
[1773450118525,9.58831232,88.042,87.993,10.42576757]
[1773450119618,9.58831232,88.042,88.002,10.225]
[1773450120024,9.58831232,88.018,87.963,35.78]
[1773450120226,9.58831232,88.009,87.965,10.42576757]
[1773450120728,9.58831232,88.009,87.982,0.07354851]
[1773450124928,9.58831232,88.019,87.982,10.49931608]
[1773450125126,9.58831232,88.03,87.982,10.49931608]
[1773450125824,44.0,88.039,87.982,10.49931608]
[1773450125825,9.58831232,88.038,87.982,10.42576757]
[1773450126226,9.58831232,88.038,88.0,10.42576757]
[1773450127120,44.0,88.039,88.005,10.42576757]
[1773450127321,9.58831232,88.049,87.997,10.5005469]
[1773450128527,9.58831232,88.049,87.998,10.42576757]
[1773450129428,9.58831232,88.049,88.015,0.07448925]
[1773450137229,9.58831232,88.049,88.015,10.50025682]
[1773450140235,9.58831232,88.049,88.015,0.07448925]
[1773450141641,9.58831232,88.049,88.016,10.57532208]
[1773450143242,9.58831232,88.049,88.015,0.07448925]
[1773450168762,9.58831232,88.049,88.018,10.223]
[1773450169564,9.58831232,88.049,88.019,9.63847063]
[1773450170466,9.58831232,88.049,88.023,10.223]
[1773450173276,10.217,88.071,88.026,9.74745308]
[1773450173472,44.0,88.072,88.026,9.74745308]
[1773450173872,10.5340439,88.071,88.026,9.74745308]
[1773450174274,10.5340439,88.071,88.04,0.0808258]
[1773450178379,10.5340439,88.083,88.041,9.74745308]
[1773450179580,10.5340439,88.069,88.011,9.74745308]
[1773450180379,10.5340439,88.069,88.028,9.74745308]
[1773450180579,10.5340439,88.069,87.994,35.76]
[1773450180580,10.5340439,88.069,88.031,9.74745308]
[1773450181181,0.07469932,88.057,88.031,9.74745308]
[1773450181582,0.07469932,88.057,88.032,9.74745308]
[1773450183791,10.5340439,88.056,88.021,10.223]
[1773450186485,10.5340439,88.055,88.02,9.74745308]
[1773450190694,0.07469932,88.057,88.021,9.74745308]
[1773450192093,0.07469932,88.057,87.994,35.76]
[1773450192094,10.5340439,88.086,88.046,9.74745308]
[1773450193494,10.5340439,88.086,88.057,0.07335239]
[1773450198994,10.5340439,88.103,88.057,9.82080547]
[1773450200498,10.5340439,88.103,88.058,10.218]
[1773450200703,10.5340439,88.103,88.059,9.74745308]
[1773450201104,10.5340439,88.103,88.063,10.20200623]
[1773450201698,10.5340439,88.103,88.093,0.13]
[1773450201699,10.4040439,88.103,88.093,0.13]
[1773450204407,10.4040439,88.103,88.089,0.07641433]
[1773450204408,10.6640439,88.103,88.073,0.13]
[1773450204706,0.39,88.098,88.073,0.13]
[1773450206502,10.45806265,88.098,88.073,0.13]
[1773450209310,10.45806265,88.098,88.05,10.219]
[1773450209512,10.06806265,88.089,88.05,10.219]
[1773450210305,10.06806265,88.084,88.05,10.219]
[1773450214417,10.06806265,88.084,88.057,10.219]
[1773450214616,0.07763585,88.085,88.057,10.219]
[1773450221121,0.07763585,88.085,88.063,10.348]
[1773450225220,0.07763585,88.085,88.063,0.13]
[1773450231221,0.07763585,88.085,88.063,9.76311603]
[1773450231920,0.07763585,88.085,88.066,9.63311603]
[1773450232124,0.52,88.093,88.066,9.63311603]
[1773450233625,0.52,88.093,88.068,9.63311603]
[1773450237624,0.52,88.093,88.065,0.07316909]
[1773450237625,44.0,88.106,88.071,9.63311603]
[1773450237931,10.10773521,88.115,88.071,9.63311603]
[1773450238224,9.97773521,88.115,88.096,0.13]
[1773450238824,9.97773521,88.115,88.097,0.07300126]
[1773450244333,0.13,88.12,88.097,0.07300126]
[1773450252439,0.13,88.12,88.098,19.84711603]
[1773450252948,0.13,88.12,88.098,9.63311603]
[1773450253338,10.10773521,88.119,88.097,0.07300126]
[1773450257241,10.10773521,88.11,88.086,0.13]
[1773450258745,10.10773521,88.106,88.086,0.13]
[1773450265552,0.07224545,88.107,88.086,10.00731487]
[1773450268151,10.32159814,88.128,88.086,9.87731487]
[1773450268449,10.19159814,88.128,88.097,0.13]
[1773450268849,10.19159814,88.128,88.097,10.00731487]
[1773450270953,10.19159814,88.128,88.097,0.13]
[1773450276650,10.32159814,88.109,88.057,0.13]
[1773450276952,10.32159814,88.099,88.057,0.13]
[1773450278151,10.32159814,88.089,88.057,0.13]
[1773450284059,10.32159814,88.079,88.034,10.221]
[1773450285153,3.04353614,88.07,88.034,10.221]
[1773450285352,10.32159814,88.069,88.026,10.222]
[1773450290553,10.32159814,88.069,88.007,35.87]
[1773450290554,10.32159814,88.069,88.007,0.13]
[1773450290749,10.16297789,88.049,88.007,10.3050774]
[1773450291559,0.08222775,88.037,88.007,10.3050774]
[1773450292656,0.08222775,88.037,88.008,10.224]
[1773450292959,0.08222775,88.037,88.009,9.98468182]
[1773450293357,0.08222775,88.037,88.013,20.20868182]
[1773450293752,0.08222775,88.037,88.014,9.98468182]
[1773450294460,9.89783845,88.063,88.016,9.98468182]
[1773450294865,9.89783845,88.063,88.018,9.98468182]
[1773450295565,9.89783845,88.063,88.022,10.223]
[1773450297865,9.89783845,88.049,88.017,0.07983509]
[1773450307866,9.89783845,88.039,88.017,0.07983509]
[1773450308266,9.89783845,88.039,88.007,0.13]
[1773450308467,9.89783845,88.036,88.007,0.13]
[1773450309967,0.07552921,88.037,88.007,10.11468182]
[1773450311667,0.07552921,88.037,88.018,10.223]
[1773450314470,9.89783845,88.046,88.019,0.07396489]
[1773450333588,10.2374453,88.039,88.007,0.13]
[1773450355504,0.07945391,88.041,88.007,9.55757555]
[1773450355698,44.0,88.05,88.01,3.04833685]
[1773450355899,9.86656847,88.059,88.011,9.42757555]
[1773450356105,9.86656847,88.059,88.015,9.42757555]
[1773450356608,9.86656847,88.059,88.025,10.222]
[1773450357511,9.86656847,88.059,88.033,0.08072669]
[1773450360508,44.0,88.071,88.007,9.55757555]
[1773450360509,9.86656847,88.049,88.007,9.55757555]
[1773450361209,44.0,88.071,88.007,0.13]
[1773450361210,9.86656847,88.039,88.007,0.13]
[1773450362209,0.07901487,88.032,88.007,0.13]
[1773450362403,9.86656847,88.031,88.007,0.13]
[1773450372917,0.07901487,88.032,88.007,9.55757555]
[1773450374518,0.07901487,88.032,88.009,9.42757555]
[1773450381824,12.6259885,88.05,88.013,19.98948828]
[1773450382022,44.0,88.059,88.014,9.76548828]
[1773450382223,9.57693195,88.059,88.014,9.76548828]
[1773450382625,9.57693195,88.059,88.015,10.223]
[1773450382823,9.57693195,88.059,88.016,9.76548828]
[1773450383422,9.57693195,88.059,88.029,0.07543745]
[1773450388133,9.57693195,88.049,88.007,0.13]
[1773450389125,9.57693195,88.047,88.007,0.13]
[1773450389436,0.07510482,88.037,88.007,0.13]
[1773450389630,9.65203677,88.037,88.007,0.13]
[1773450389836,0.07510482,88.037,88.009,9.76548828]
[1773450390633,0.07510482,88.037,88.01,10.224]
[1773450390833,0.07510482,88.037,88.011,9.76548828]
[1773450392536,0.07510482,88.037,88.013,19.98948828]
[1773450393233,0.07510482,88.037,88.014,9.76548828]
[1773450394936,9.57693195,88.051,88.015,10.223]
[1773450395133,9.57693195,88.051,88.018,9.76548828]
[1773450399441,9.57693195,88.051,88.017,0.08336568]
[1773450399838,9.57693195,88.049,88.017,0.08336568]
[1773450400637,9.57693195,88.043,88.017,0.08336568]
[1773450404440,10.22,88.042,88.017,0.08336568]
[1773450404643,19.79693195,88.042,88.017,0.08336568]
[1773450406243,9.86928455,88.041,88.017,0.08336568]
[1773450411353,10.221,88.04,88.017,0.08336568]
[1773450411953,19.84046635,88.04,88.017,0.08336568]
[1773450412553,9.61946635,88.029,88.007,0.13]
[1773450415552,9.61946635,88.026,87.978,10.228]
[1773450415850,9.61946635,88.026,87.985,9.94010425]
[1773450416551,9.61946635,88.036,87.998,9.94010425]
[1773450418857,10.221,88.034,87.998,9.94010425]
[1773450420047,9.61946635,88.033,87.998,9.94010425]
[1773450421754,19.84146635,88.03,87.998,9.94010425]
[1773450421959,9.61946635,88.029,87.998,9.94010425]
[1773450424857,9.61946635,88.029,87.986,9.94010425]
[1773450426460,9.61946635,88.029,87.996,9.94010425]
[1773450429061,9.61946635,88.029,87.986,9.94010425]
[1773450431853,9.61946635,88.009,87.968,9.94010425]
[1773450433164,9.61946635,88.021,87.968,9.94010425]
[1773450433562,9.61946635,88.021,87.98,0.07852146]
[1773450433764,9.61946635,88.021,87.98,10.01862571]
[1773450445371,3.04945872,88.04,87.98,10.01862571]
[1773450445372,19.87730145,88.031,87.984,9.69066766]
[1773450445572,9.65530145,88.03,87.984,9.69066766]
[1773450446274,9.65530145,88.03,87.991,9.69066766]
[1773450446769,9.65530145,88.03,87.998,9.76435453]
[1773450452571,9.65530145,88.045,87.998,9.76435453]
[1773450453171,9.65530145,88.045,88.001,9.69066766]
[1773450453673,9.65530145,88.045,88.007,9.69066766]
[1773450454375,9.65530145,88.045,88.0,3.04945872]
[1773450454579,9.65530145,88.045,88.017,0.0790676]
[1773450454780,9.65530145,88.034,87.995,9.69066766]
[1773450468796,9.65530145,88.034,87.997,9.67561052]
[1773450470501,9.65530145,88.034,87.999,10.225]
[1773450470799,9.65530145,88.034,88.0,9.67561052]
[1773450471593,9.65530145,88.034,88.002,10.10682594]
[1773450473299,9.65530145,88.034,88.003,10.225]
[1773450473492,0.0744542,88.035,88.004,10.10682594]
[1773450474499,0.0744542,88.035,88.005,10.225]
[1773450474800,0.0744542,88.035,88.005,20.33182594]
[1773450477095,0.0744542,88.035,88.006,10.10682594]
[1773450479902,9.92304947,88.029,87.981,10.10682594]
[1773450480204,9.92304947,88.019,87.968,10.10682594]
[1773450480805,0.07236326,88.002,87.968,10.10682594]
[1773450481605,0.07236326,88.002,87.969,20.33582594]
[1773450481904,0.07236326,88.002,87.97,10.10682594]
[1773450482809,0.07236326,88.002,87.971,10.10682594]
[1773450483509,0.07236326,88.002,87.979,10.228]
[1773450483708,0.07236326,88.002,87.98,10.10682594]
[1773450484506,0.07236326,88.002,87.983,10.227]
[1773450484701,9.92304947,88.02,87.984,10.10682594]
[1773450486201,9.92304947,88.02,87.986,10.227]
[1773450486407,12.97270166,88.03,87.994,10.10682594]
[1773450487005,9.92304947,88.029,87.994,10.10682594]
[1773450490006,9.92304947,88.029,87.993,0.07285553]
[1773450491509,9.92304947,88.026,87.993,0.07285553]
[1773450492112,9.92304947,88.022,87.993,0.07285553]
[1773450495612,9.92304947,88.021,87.993,0.07285553]
[1773450499811,9.92304947,88.019,87.993,0.07285553]
[1773450500410,9.92304947,88.019,87.98,10.10682594]
[1773450500714,9.92304947,88.019,87.997,0.07421835]
[1773450503319,10.222,88.027,87.997,0.07421835]
[1773450503716,9.76907202,88.026,87.997,0.07421835]
[1773450504113,9.76907202,88.035,87.998,9.94106464]
[1773450504511,9.76907202,88.047,87.998,9.94106464]
[1773450504719,9.76907202,88.047,88.007,9.94106464]
[1773450506318,1.82,88.049,88.009,9.94106464]
[1773450506513,1.82,88.049,88.019,9.94106464]
[1773450509622,9.76907202,88.048,88.018,0.07496545]
[1773450510322,1.82,88.049,88.018,10.01603009]
[1773450510615,1.82,88.049,88.019,20.16406464]
[1773450510814,1.82,88.049,88.02,9.94106464]
[1773450515921,1.82,88.049,88.023,9.94106464]
[1773450532841,1.82,88.049,88.024,10.222]
[1773450533042,1.82,88.049,88.025,9.63919083]
[1773450538152,9.76907202,88.069,88.033,9.63919083]
[1773450538448,3.04965219,88.09,88.018,0.07496545]
[1773450538449,10.10372837,88.079,88.049,0.13]
[1773450538851,3.04965219,88.08,88.049,0.13]
[1773450538852,10.216,88.078,88.049,0.13]
[1773450539257,0.26,88.074,88.055,0.07489447]
[1773450539852,0.26,88.074,88.049,0.13]
[1773450540053,0.07452628,88.073,88.049,0.13]
[1773450540648,10.23372837,88.072,88.049,0.13]
[1773450543154,0.07452628,88.073,88.049,0.13]
[1773450546160,0.07452628,88.073,88.049,9.76919083]
[1773450549857,0.07452628,88.073,88.049,0.13]
[1773450557364,0.07452628,88.073,88.049,9.76919083]
[1773450559466,10.23372837,88.096,88.051,9.63919083]
[1773450559661,10.10372837,88.096,88.076,0.13]
[1773450559967,10.10372837,88.096,88.066,0.13]
[1773450560363,0.39,88.091,88.066,0.13]
[1773450562569,0.39,88.091,88.07,0.07214925]
[1773450570379,0.39,88.091,88.07,10.28924479]
[1773450572681,10.17306057,88.09,88.07,0.07214925]
[1773450574681,10.17306057,88.09,88.056,0.13]
[1773450574880,10.17306057,88.085,88.056,0.13]
[1773450579084,10.17306057,88.085,88.056,10.34709554]
[1773450580280,0.52,88.086,88.056,10.34709554]
[1773450583983,10.69306057,88.086,88.056,0.13]
[1773450592977,10.69306057,88.086,88.056,9.78843923]
[1773450600400,10.69306057,88.086,88.008,37.99285861]
[1773450600401,9.88232384,88.066,88.008,37.99285861]
[1773450600692,9.88232384,88.066,87.977,20.456]
[1773450600693,9.88232384,88.066,88.027,9.65843923]
[1773450601294,9.88232384,88.066,88.017,10.223]
[1773450601596,9.88232384,88.054,88.017,10.223]
[1773450603195,9.88232384,88.054,88.025,9.65843923]
[1773450603396,9.88232384,88.054,88.026,9.78843923]
[1773450603597,0.08018416,88.055,88.026,9.78843923]
[1773450604401,9.88232384,88.095,88.041,9.65843923]
[1773450604795,9.75232384,88.095,88.075,0.13]
[1773450605595,10.01232384,88.095,88.075,0.13]
[1773450605896,10.01232384,88.095,88.076,0.07323578]
[1773450611598,0.26,88.095,88.076,0.07323578]
[1773450624314,9.91994228,88.095,88.076,0.07323578]
[1773450636718,9.65994228,88.093,88.065,0.13]
[1773450636925,44.0,88.126,88.005,0.13]
[1773450636926,9.65994228,88.069,88.012,9.5712405]
[1773450637122,9.65994228,88.059,88.012,9.5712405]
[1773450638226,9.65994228,88.058,88.013,10.224]
[1773450640031,0.07581991,88.05,88.013,10.224]
[1773450648030,9.7460549,88.05,88.013,10.224]
[1773450648227,9.67023499,88.049,88.012,9.5712405]
[1773450649032,9.67023499,88.049,88.005,10.355]
[1773450652641,9.67023499,88.049,88.005,0.13]
[1773450659535,10.22,88.048,88.005,0.13]
[1773450659731,9.79840065,88.047,88.005,0.13]
[1773450660638,3.12046409,88.05,88.005,0.13]
[1773450660639,9.79840065,88.029,88.005,0.13]
[1773450661631,9.79840065,88.009,87.958,9.82257297]
[1773450661841,35.76,88.036,87.958,9.82257297]
[1773450661842,9.79840065,87.999,87.958,9.82257297]
[1773450665633,9.79840065,87.989,87.955,0.13]
[1773450669444,0.07560716,87.991,87.965,9.95257297]
[1773450673845,0.07560716,87.991,87.965,0.13]
[1773450674047,9.87400781,87.991,87.965,0.13]
[1773450679055,9.87400781,87.991,87.965,0.001]
[1773450679056,12.85080001,87.99,87.965,0.001]
[1773450680050,9.79840065,87.99,87.965,0.001]
[1773450683149,12.85080001,87.99,87.965,0.001]
[1773450683352,10.06875341,87.989,87.965,0.001]
[1773450688762,10.06875341,87.984,87.965,0.001]
[1773450688964,10.06875341,87.979,87.945,0.13]
[1773450689157,10.06875341,87.969,87.918,12.14545624]
[1773450689359,10.06875341,87.969,87.918,10.16735181]
[1773450689760,10.06875341,87.951,87.925,0.001]
[1773450691769,10.06875341,87.948,87.925,0.001]
[1773450695075,10.06875341,87.947,87.915,0.001]
[1773450695376,10.06875341,87.939,87.892,10.16735181]
[1773450695772,10.06875341,87.929,87.892,10.16735181]
[1773450695978,10.06875341,87.929,87.87,3.05239936]
[1773450695979,10.06875341,87.929,87.878,10.16735181]
[1773450696368,10.06875341,87.92,87.878,10.16735181]
[1773450709285,9.47343537,87.918,87.878,10.16735181]
[1773450709582,9.47343537,87.918,87.885,9.9174062]
[1773450712082,9.63652864,87.909,87.86,10.07093412]
[1773450712486,9.63652864,87.899,87.85,10.07093412]
[1773450712880,9.63652864,87.897,87.86,10.07093412]
[1773450713188,0.07451388,87.891,87.86,10.07093412]
[1773450713985,9.63652864,87.913,87.866,10.07093412]
[1773450714281,9.63652864,87.913,87.828,1.98020365]
[1773450714282,9.63652864,87.924,87.871,10.07093412]
[1773450714592,9.63652864,87.924,87.881,10.07093412]
[1773450715389,9.63652864,87.924,87.894,0.08136021]
[1773450720483,9.63652864,87.924,87.895,10.237]
[1773450721586,9.63652864,87.924,87.894,0.08136021]
[1773450722889,9.63652864,87.942,87.895,20.30793412]
[1773450723085,9.63652864,87.942,87.901,10.07093412]
[1773450723396,9.63652864,87.975,87.921,10.07093412]
[1773450724094,9.63652864,87.975,87.939,0.0779835]
[1773450724485,10.228,87.974,87.939,0.0779835]
[1773450724697,9.63652864,87.973,87.939,0.0779835]
[1773450725387,9.63652864,87.964,87.882,20.30993412]
[1773450725593,34.07,87.973,87.883,10.07093412]
[1773450725594,9.63652864,87.949,87.883,10.07093412]